[Event "Live Chess"]
[Site "Chess.com"]
[Date "2024.06.01"]
[Round "-"]
[White "gmnorfolk"]
[Black "Kyrylo7770"]
[Result "1-0"]
[WhiteElo "2138"]
[BlackElo "1714"]
[TimeControl "300"]
[EndTime "9:08:54 PDT"]
[Termination "gmnorfolk won by checkmate"]

1. c4 {[%clk 0:04:57.8]} 1... c6 {[%clk 0:04:58.6]} 2. d4 {[%clk 0:04:53.8]}
2... d5 {[%clk 0:04:57.1]} 3. Nf3 {[%clk 0:04:53.4]} 3... Nf6 {[%clk 0:04:55.5]}
4. Nc3 {[%clk 0:04:53]} 4... Bg4 {[%clk 0:04:54.4]} 5. Ne5 {[%clk 0:04:48]} 5...
Bh5 {[%clk 0:04:53.2]} 6. cxd5 {[%clk 0:04:46.7]} 6... cxd5 {[%clk 0:04:51.3]}
7. Qb3 {[%clk 0:04:46.2]} 7... e6 {[%clk 0:04:48.8]} 8. Qxb7 {[%clk 0:04:44.2]}
8... Nbd7 {[%clk 0:04:48.3]} 9. Nxd7 {[%clk 0:04:37]} 9... Nxd7 {[%clk
0:04:45.4]} 10. e4 {[%clk 0:04:35.3]} 10... Rb8 {[%clk 0:04:41.1]} 11. Qxa7
{[%clk 0:04:34.4]} 11... Bb4 {[%clk 0:04:40.2]} 12. exd5 {[%clk 0:04:26.3]}
12... Bxc3+ {[%clk 0:04:37.8]} 13. bxc3 {[%clk 0:04:24.8]} 13... exd5 {[%clk
0:04:34.9]} 14. Bd3 {[%clk 0:04:19]} 14... O-O {[%clk 0:04:29.2]} 15. O-O {[%clk
0:04:17.9]} 15... Nf6 {[%clk 0:04:26]} 16. Bg5 {[%clk 0:04:13.4]} 16... Qd6
{[%clk 0:04:20]} 17. Qc5 {[%clk 0:04:12]} 17... Qe6 {[%clk 0:04:15.6]} 18. Rfe1
{[%clk 0:04:06.5]} 18... Qg4 {[%clk 0:04:03.7]} 19. Bxf6 {[%clk 0:03:44.4]}
19... gxf6 {[%clk 0:04:01.3]} 20. Qxd5 {[%clk 0:03:43.3]} 20... Bg6 {[%clk
0:03:59.3]} 21. Bxg6 {[%clk 0:03:38.8]} 21... hxg6 {[%clk 0:03:58.6]} 22. f3
{[%clk 0:03:30.1]} 22... Qh4 {[%clk 0:03:55.7]} 23. Qe4 {[%clk 0:03:28]} 23...
Qh6 {[%clk 0:03:51.4]} 24. Qe3 {[%clk 0:03:26.5]} 24... Qh4 {[%clk 0:03:49.3]}
25. Re2 {[%clk 0:03:21.9]} 25... Kg7 {[%clk 0:03:47.7]} 26. Rd1 {[%clk
0:03:16.2]} 26... Rh8 {[%clk 0:03:45.9]} 27. g3 {[%clk 0:03:13.9]} 27... Qh5
{[%clk 0:03:41.6]} 28. d5 {[%clk 0:03:10.1]} 28... Rbd8 {[%clk 0:03:37.6]} 29.
d6 {[%clk 0:03:08.4]} 29... Rhe8 {[%clk 0:03:11.1]} 30. Qxe8 {[%clk 0:03:07.2]}
30... Rxe8 {[%clk 0:03:10.4]} 31. Rxe8 {[%clk 0:03:06.8]} 31... Qxf3 {[%clk
0:03:08.5]} 32. Ree1 {[%clk 0:03:06.2]} 32... Qxc3 {[%clk 0:03:04.4]} 33. d7
{[%clk 0:03:03.5]} 33... Qc5+ {[%clk 0:03:03.7]} 34. Kg2 {[%clk 0:03:01]} 34...
Qc6+ {[%clk 0:03:03]} 35. Kh3 {[%clk 0:02:54.3]} 35... Qc5 {[%clk 0:02:52.6]}
36. d8=Q {[%clk 0:02:46.1]} 36... Qf5+ {[%clk 0:02:51.9]} 37. Kg2 {[%clk
0:02:43.6]} 37... Qc2+ {[%clk 0:02:47.8]} 38. Qd2 {[%clk 0:02:41.9]} 38... Qc6+
{[%clk 0:02:45.5]} 39. Qd5 {[%clk 0:02:39.4]} 39... Qc2+ {[%clk 0:02:44.2]} 40.
Rd2 {[%clk 0:02:37.9]} 40... Qc3 {[%clk 0:02:38.5]} 41. Qd4 {[%clk 0:02:34.7]}
41... Qc6+ {[%clk 0:02:35.9]} 42. Kg1 {[%clk 0:02:31.1]} 42... Qf3 {[%clk
0:02:29.7]} 43. Rf1 {[%clk 0:02:29.8]} 43... Qh5 {[%clk 0:02:24.7]} 44. Qxf6+
{[%clk 0:02:26.9]} 44... Kh6 {[%clk 0:02:21.4]} 45. Qh8+ {[%clk 0:02:24.3]}
45... Kg5 {[%clk 0:02:20]} 46. h4+ {[%clk 0:02:09.1]} 46... Kg4 {[%clk
0:02:15.3]} 47. Qd4+ {[%clk 0:02:07.3]} 47... Kxg3 {[%clk 0:02:14.1]} 48. Rg2+
{[%clk 0:02:02.9]} 48... Kh3 {[%clk 0:02:11.8]} 49. Qe3+ {[%clk 0:02:01.1]}
49... Kxh4 {[%clk 0:02:10]} 50. Qg3# {[%clk 0:01:57.7]} 1-0

[Event "Live Chess"]
[Site "Chess.com"]
[Date "2024.06.01"]
[Round "-"]
[White "CheckThis4"]
[Black "willc-h99"]
[Result "1-0"]
[WhiteElo "2692"]
[BlackElo "2667"]
[TimeControl "300"]
[EndTime "9:08:56 PDT"]
[Termination "CheckThis4 won by resignation"]

1. e4 {[%clk 0:04:57.7]} 1... d5 {[%clk 0:04:57.9]} 2. exd5 {[%clk 0:04:56]}
2... Qxd5 {[%clk 0:04:57.8]} 3. Nc3 {[%clk 0:04:54.6]} 3... Qd6 {[%clk
0:04:57.4]} 4. d4 {[%clk 0:04:52]} 4... Nf6 {[%clk 0:04:56.8]} 5. Nf3 {[%clk
0:04:49.5]} 5... c6 {[%clk 0:04:56.2]} 6. g3 {[%clk 0:04:48.3]} 6... Bg4 {[%clk
0:04:54.6]} 7. Bf4 {[%clk 0:04:46]} 7... Qd8 {[%clk 0:04:52.5]} 8. Bg2 {[%clk
0:04:43]} 8... e6 {[%clk 0:04:50.9]} 9. h3 {[%clk 0:04:39.7]} 9... Bxf3 {[%clk
0:04:48.5]} 10. Qxf3 {[%clk 0:04:38.7]} 10... Bd6 {[%clk 0:04:46.4]} 11. O-O-O
{[%clk 0:04:35.2]} 11... O-O {[%clk 0:04:43]} 12. Rhe1 {[%clk 0:04:17.7]} 12...
Na6 {[%clk 0:04:04.4]} 13. Kb1 {[%clk 0:04:13.9]} 13... Nb4 {[%clk 0:03:59.7]}
14. Be5 {[%clk 0:04:06.9]} 14... Nfd5 {[%clk 0:03:47.5]} 15. Ne4 {[%clk
0:04:00]} 15... Be7 {[%clk 0:03:13.3]} 16. a3 {[%clk 0:03:53.6]} 16... Na6
{[%clk 0:02:28.9]} 17. c4 {[%clk 0:03:46.8]} 17... Nf6 {[%clk 0:02:18.4]} 18.
Nc3 {[%clk 0:03:07.7]} 18... Qc8 {[%clk 0:01:53.3]} 19. g4 {[%clk 0:02:59.2]}
19... Nd7 {[%clk 0:01:48.7]} 20. Bg3 {[%clk 0:02:53.9]} 20... Nb6 {[%clk
0:01:40.4]} 21. Qe2 {[%clk 0:02:46.6]} 21... Re8 {[%clk 0:01:36.8]} 22. h4
{[%clk 0:02:42.2]} 22... Bf8 {[%clk 0:01:29.8]} 23. g5 {[%clk 0:02:37.6]} 23...
Nd7 {[%clk 0:01:20.1]} 24. h5 {[%clk 0:02:34.1]} 24... Nc7 {[%clk 0:01:15.8]}
25. g6 {[%clk 0:02:31.5]} 25... fxg6 {[%clk 0:01:11.5]} 26. hxg6 {[%clk
0:02:30.6]} 26... hxg6 {[%clk 0:01:10]} 27. Be4 {[%clk 0:02:24.4]} 27... e5
{[%clk 0:01:01.5]} 28. d5 {[%clk 0:02:21.7]} 28... cxd5 {[%clk 0:00:55]} 29.
cxd5 {[%clk 0:02:19.5]} 29... Nf6 {[%clk 0:00:52.9]} 30. Bxg6 {[%clk 0:02:16]}
30... a5 {[%clk 0:00:37]} 31. d6 {[%clk 0:02:05.6]} 31... Ne6 {[%clk 0:00:33.4]}
32. Bxe5 {[%clk 0:01:52.6]} 32... Nf4 {[%clk 0:00:31.2]} 33. Qc2 {[%clk
0:01:40.7]} 33... Nxg6 {[%clk 0:00:29.4]} 34. Qxg6 {[%clk 0:01:39.2]} 34... Re6
{[%clk 0:00:21.4]} 35. d7 {[%clk 0:01:28.5]} 35... Qc5 {[%clk 0:00:08.3]} 36.
Bxf6 {[%clk 0:01:17]} 36... Rxf6 {[%clk 0:00:07.3]} 37. Qe8 {[%clk 0:01:07.4]}
37... Rxf2 {[%clk 0:00:06.9]} 38. Qe6+ {[%clk 0:01:05.6]} 38... Rf7 {[%clk
0:00:03.1]} 1-0

[Event "Live Chess"]
[Site "Chess.com"]
[Date "2024.06.01"]
[Round "-"]
[White "viktorskliarov"]
[Black "Grieve72"]
[Result "1-0"]
[WhiteElo "2646"]
[BlackElo "2650"]
[TimeControl "300"]
[EndTime "9:09:07 PDT"]
[Termination "viktorskliarov won by checkmate"]

1. e4 {[%clk 0:04:59.4]} 1... c5 {[%clk 0:04:59]} 2. Nf3 {[%clk 0:04:58.2]} 2...
e6 {[%clk 0:04:58.2]} 3. d4 {[%clk 0:04:56.9]} 3... cxd4 {[%clk 0:04:58.1]} 4.
Nxd4 {[%clk 0:04:56.7]} 4... Nc6 {[%clk 0:04:57.8]} 5. Nc3 {[%clk 0:04:55.8]}
5... Qc7 {[%clk 0:04:57.5]} 6. Be2 {[%clk 0:04:54.8]} 6... Nf6 {[%clk
0:04:56.1]} 7. O-O {[%clk 0:04:53.9]} 7... a6 {[%clk 0:04:55.7]} 8. Be3 {[%clk
0:04:52.8]} 8... Be7 {[%clk 0:04:55]} 9. f4 {[%clk 0:04:51.6]} 9... d6 {[%clk
0:04:54.7]} 10. Kh1 {[%clk 0:04:50.9]} 10... O-O {[%clk 0:04:53.3]} 11. Qe1
{[%clk 0:04:50.3]} 11... Nxd4 {[%clk 0:04:52.6]} 12. Bxd4 {[%clk 0:04:49.4]}
12... b5 {[%clk 0:04:52.2]} 13. a3 {[%clk 0:04:47.1]} 13... Nd7 {[%clk
0:04:51.5]} 14. Qg3 {[%clk 0:04:43.6]} 14... Bf6 {[%clk 0:04:50.6]} 15. Rad1
{[%clk 0:04:17.9]} 15... Bb7 {[%clk 0:04:48.8]} 16. Bf3 {[%clk 0:04:03.5]} 16...
Bxd4 {[%clk 0:04:40.1]} 17. Rxd4 {[%clk 0:03:58.7]} 17... Nb6 {[%clk 0:04:39.8]}
18. f5 {[%clk 0:03:36]} 18... exf5 {[%clk 0:04:02.3]} 19. exf5 {[%clk
0:03:23.4]} 19... f6 {[%clk 0:04:01.7]} 20. Bxb7 {[%clk 0:02:53.2]} 20... Qxb7
{[%clk 0:03:59.9]} 21. Rfd1 {[%clk 0:02:50.5]} 21... Rae8 {[%clk 0:03:10]} 22.
Rxd6 {[%clk 0:02:44.2]} 22... Re7 {[%clk 0:03:08.6]} 23. Nd5 {[%clk 0:02:30]}
23... Nxd5 {[%clk 0:03:03.7]} 24. R6xd5 {[%clk 0:02:28.7]} 24... Rfe8 {[%clk
0:02:55.4]} 25. h3 {[%clk 0:02:26.2]} 25... Re3 {[%clk 0:02:38.6]} 26. Qd6
{[%clk 0:02:14.9]} 26... h5 {[%clk 0:02:25.9]} 27. R1d3 {[%clk 0:01:34.5]} 27...
Re1+ {[%clk 0:02:06.5]} 28. Kh2 {[%clk 0:01:33.4]} 28... R8e2 {[%clk 0:02:05.3]}
29. Rg3 {[%clk 0:01:24]} 29... Rxc2 {[%clk 0:01:18.9]} 30. Qxf6 {[%clk
0:01:16.9]} 30... Re8 {[%clk 0:00:52.4]} 31. Qg6 {[%clk 0:01:04.8]} 31... Rf8
{[%clk 0:00:34.6]} 32. f6 {[%clk 0:01:02.4]} 32... Rc7 {[%clk 0:00:17.1]} 33.
Rxh5 {[%clk 0:00:54.4]} 33... Qc6 {[%clk 0:00:10.4]} 34. Qh7+ {[%clk 0:00:52.3]}
34... Kf7 {[%clk 0:00:09.8]} 35. Rxg7+ {[%clk 0:00:48.1]} 35... Ke6 {[%clk
0:00:09.2]} 36. Qf5+ {[%clk 0:00:45.3]} 36... Kd6 {[%clk 0:00:08.7]} 37. Qe5#
{[%clk 0:00:44.6]} 1-0

[Event "Live Chess"]
[Site "Chess.com"]
[Date "2024.06.01"]
[Round "-"]
[White "Frankie_Badacsonyi"]
[Black "defenderalist"]
[Result "1-0"]
[WhiteElo "2455"]
[BlackElo "1469"]
[TimeControl "300"]
[EndTime "9:09:07 PDT"]
[Termination "Frankie_Badacsonyi won by resignation"]

1. e4 {[%clk 0:04:57.9]} 1... c5 {[%clk 0:04:54.8]} 2. Nf3 {[%clk 0:04:57]} 2...
d6 {[%clk 0:04:44.2]} 3. d4 {[%clk 0:04:55.6]} 3... cxd4 {[%clk 0:04:40.3]} 4.
Nxd4 {[%clk 0:04:55.5]} 4... Nc6 {[%clk 0:04:39]} 5. Nc3 {[%clk 0:04:53]} 5...
Nf6 {[%clk 0:04:33.3]} 6. Bg5 {[%clk 0:04:49.5]} 6... h6 {[%clk 0:04:29.1]} 7.
Bxf6 {[%clk 0:04:48.2]} 7... gxf6 {[%clk 0:04:21.7]} 8. Bc4 {[%clk 0:04:43.8]}
8... Ne5 {[%clk 0:04:18.9]} 9. Bb3 {[%clk 0:04:42]} 9... Bg4 {[%clk 0:04:15.9]}
10. f3 {[%clk 0:04:36.6]} 10... Bh5 {[%clk 0:04:14]} 11. Ba4+ {[%clk 0:04:24.3]}
11... Nd7 {[%clk 0:04:09.3]} 12. Qd3 {[%clk 0:04:09.6]} 12... a6 {[%clk
0:04:05.4]} 13. g4 {[%clk 0:03:51.3]} 13... Bg6 {[%clk 0:04:04.1]} 14. Nf5
{[%clk 0:03:27.7]} 14... Qc7 {[%clk 0:03:41]} 15. O-O-O {[%clk 0:03:13.9]} 15...
e6 {[%clk 0:03:39.4]} 16. Ne3 {[%clk 0:03:05.3]} 16... Be7 {[%clk 0:03:30.2]}
17. Kb1 {[%clk 0:02:43.3]} 17... b5 {[%clk 0:03:23.6]} 18. Bb3 {[%clk
0:02:42.4]} 18... Nc5 {[%clk 0:03:20.5]} 19. Qd2 {[%clk 0:02:41.1]} 19... Nxb3
{[%clk 0:03:17.9]} 20. axb3 {[%clk 0:02:40.8]} 20... O-O {[%clk 0:03:13.2]} 21.
h4 {[%clk 0:02:28.4]} 21... b4 {[%clk 0:02:55.2]} 22. Ne2 {[%clk 0:02:20.3]}
22... Rfc8 {[%clk 0:02:45.1]} 23. Nf4 {[%clk 0:02:01.6]} 23... e5 {[%clk
0:02:34.3]} 24. Nfd5 {[%clk 0:01:59.2]} 24... Qb7 {[%clk 0:02:26.2]} 25. Nf5
{[%clk 0:01:58.1]} 25... Bf8 {[%clk 0:02:21.6]} 26. Nxf6+ {[%clk 0:01:55.4]}
26... Kh8 {[%clk 0:02:16.3]} 27. Nd5 {[%clk 0:01:53.7]} 27... Bxf5 {[%clk
0:02:12.4]} 28. gxf5 {[%clk 0:01:52.4]} 28... Bg7 {[%clk 0:02:07.6]} 29. f6
{[%clk 0:01:50.4]} 29... Bf8 {[%clk 0:02:05.6]} 30. Rhg1 {[%clk 0:01:49]} 30...
a5 {[%clk 0:02:00.2]} 31. Qg2 {[%clk 0:01:47.6]} 1-0

[Event "Live Chess"]
[Site "Chess.com"]
[Date "2024.06.01"]
[Round "-"]
[White "jimwad"]
[Black "Brooms1989"]
[Result "1-0"]
[WhiteElo "1199"]
[BlackElo "1008"]
[TimeControl "300"]
[EndTime "9:09:10 PDT"]
[Termination "jimwad won by resignation"]

1. c4 {[%clk 0:04:59]} 1... Nf6 {[%clk 0:04:57.9]} 2. g3 {[%clk 0:04:58.1]} 2...
g6 {[%clk 0:04:57]} 3. Bg2 {[%clk 0:04:57.1]} 3... Bg7 {[%clk 0:04:56.2]} 4. Nc3
{[%clk 0:04:56.3]} 4... O-O {[%clk 0:04:55.3]} 5. e3 {[%clk 0:04:55.6]} 5... d6
{[%clk 0:04:53.5]} 6. Nge2 {[%clk 0:04:54.6]} 6... e5 {[%clk 0:04:52.2]} 7. d4
{[%clk 0:04:51.9]} 7... exd4 {[%clk 0:04:43.9]} 8. exd4 {[%clk 0:04:50.7]} 8...
Nc6 {[%clk 0:04:41.6]} 9. O-O {[%clk 0:04:47.2]} 9... Bd7 {[%clk 0:04:35.3]} 10.
a3 {[%clk 0:04:45]} 10... Qc8 {[%clk 0:04:30.8]} 11. Be3 {[%clk 0:04:37.4]}
11... Bh3 {[%clk 0:04:23.7]} 12. Nf4 {[%clk 0:04:30.5]} 12... Bxg2 {[%clk
0:04:17.1]} 13. Kxg2 {[%clk 0:04:29]} 13... Ne7 {[%clk 0:04:09.2]} 14. b4 {[%clk
0:04:22.5]} 14... Nf5 {[%clk 0:04:07.5]} 15. Re1 {[%clk 0:03:59.8]} 15... Nxe3+
{[%clk 0:04:00.6]} 16. Rxe3 {[%clk 0:03:58.3]} 16... Re8 {[%clk 0:04:00.2]} 17.
Nfd5 {[%clk 0:03:46.4]} 17... Rxe3 {[%clk 0:03:46.6]} 18. Nxe3 {[%clk
0:03:42.2]} 18... Qd7 {[%clk 0:03:31.2]} 19. Qd2 {[%clk 0:03:33.8]} 19... Re8
{[%clk 0:03:17.1]} 20. Re1 {[%clk 0:03:31.9]} 20... Ne4 {[%clk 0:02:54.2]} 21.
Nxe4 {[%clk 0:03:30.1]} 21... Rxe4 {[%clk 0:02:54.1]} 22. d5 {[%clk 0:03:14.6]}
22... f5 {[%clk 0:02:12.3]} 23. f3 {[%clk 0:03:06.7]} 23... Re8 {[%clk
0:02:06.1]} 24. Nc2 {[%clk 0:02:53.3]} 24... Kf7 {[%clk 0:01:47]} 25. Rxe8
{[%clk 0:02:42.2]} 25... Qxe8 {[%clk 0:01:44.7]} 26. Qe3 {[%clk 0:02:40.6]}
26... Qxe3 {[%clk 0:01:35]} 27. Nxe3 {[%clk 0:02:39.3]} 27... Bb2 {[%clk
0:01:27.8]} 28. a4 {[%clk 0:02:37]} 28... c6 {[%clk 0:01:03.5]} 29. dxc6 {[%clk
0:02:32.6]} 29... bxc6 {[%clk 0:01:03.4]} 30. b5 {[%clk 0:02:27]} 30... cxb5
{[%clk 0:01:00.9]} 31. axb5 {[%clk 0:02:25.3]} 31... Ke6 {[%clk 0:00:55.3]} 32.
f4 {[%clk 0:02:22.9]} 32... Bd4 {[%clk 0:00:44.8]} 33. Nd5 {[%clk 0:02:21.2]}
33... Bc5 {[%clk 0:00:42.9]} 34. Kf3 {[%clk 0:02:16.7]} 34... h6 {[%clk
0:00:39.4]} 35. h4 {[%clk 0:02:12.9]} 35... Bb6 {[%clk 0:00:35.8]} 36. g4 {[%clk
0:02:05.1]} 36... fxg4+ {[%clk 0:00:34]} 37. Kxg4 {[%clk 0:02:03.8]} 37... Bc5
{[%clk 0:00:29.3]} 38. h5 {[%clk 0:02:02.3]} 38... gxh5+ {[%clk 0:00:15.8]} 39.
Kxh5 {[%clk 0:02:01]} 39... Kf5 {[%clk 0:00:11.8]} 40. Kxh6 {[%clk 0:01:59.3]}
40... Bd4 {[%clk 0:00:08.8]} 41. Kh5 {[%clk 0:01:50.6]} 41... Bb2 {[%clk
0:00:07.7]} 42. Kh4 {[%clk 0:01:46.3]} 42... Bc1 {[%clk 0:00:06.7]} 43. Kg3
{[%clk 0:01:45.4]} 43... Bd2 {[%clk 0:00:04.5]} 44. Ne7+ {[%clk 0:01:42]} 44...
Ke6 {[%clk 0:00:03]} 45. Nc6 {[%clk 0:01:38.7]} 1-0

[Event "Live Chess"]
[Site "Chess.com"]
[Date "2024.06.01"]
[Round "-"]
[White "Bradfield133"]
[Black "GwaryTek"]
[Result "0-1"]
[WhiteElo "2018"]
[BlackElo "2066"]
[TimeControl "300"]
[EndTime "9:09:15 PDT"]
[Termination "GwaryTek won by checkmate"]

1. c4 {[%clk 0:04:57.2]} 1... c6 {[%clk 0:04:56.4]} 2. Qa4 {[%clk 0:04:54.3]}
2... Nf6 {[%clk 0:04:54.7]} 3. g3 {[%clk 0:04:53.3]} 3... Na6 {[%clk 0:04:49.6]}
4. Bg2 {[%clk 0:04:51.2]} 4... Nc7 {[%clk 0:04:49.2]} 5. Nf3 {[%clk 0:04:47.9]}
5... d6 {[%clk 0:04:48.3]} 6. O-O {[%clk 0:04:46]} 6... e5 {[%clk 0:04:09.4]} 7.
d3 {[%clk 0:04:43.5]} 7... Be7 {[%clk 0:04:07.8]} 8. Nbd2 {[%clk 0:04:38.1]}
8... O-O {[%clk 0:04:06.2]} 9. a3 {[%clk 0:04:28.4]} 9... Ne6 {[%clk 0:03:57.1]}
10. b4 {[%clk 0:04:20.1]} 10... Bd7 {[%clk 0:03:54.5]} 11. Qc2 {[%clk
0:04:17.6]} 11... Re8 {[%clk 0:03:51.5]} 12. Bb2 {[%clk 0:04:15.2]} 12... g6
{[%clk 0:03:44.9]} 13. e4 {[%clk 0:03:54.3]} 13... Ng7 {[%clk 0:03:35.2]} 14. d4
{[%clk 0:03:51.7]} 14... exd4 {[%clk 0:03:24]} 15. Nxd4 {[%clk 0:03:50.2]} 15...
Rc8 {[%clk 0:03:15.9]} 16. N4b3 {[%clk 0:03:35.2]} 16... d5 {[%clk 0:03:04]} 17.
e5 {[%clk 0:03:20.6]} 17... Ng4 {[%clk 0:02:53.1]} 18. h3 {[%clk 0:03:17.3]}
18... Nh6 {[%clk 0:02:47.4]} 19. cxd5 {[%clk 0:03:12.3]} 19... cxd5 {[%clk
0:02:45.3]} 20. Qd3 {[%clk 0:03:11.1]} 20... Be6 {[%clk 0:02:37.7]} 21. Qe3
{[%clk 0:03:01]} 21... Bg5 {[%clk 0:02:22.7]} 22. f4 {[%clk 0:02:57.1]} 22...
Nhf5 {[%clk 0:02:22.1]} 23. Qxa7 {[%clk 0:02:52.4]} 23... Be7 {[%clk 0:02:09.7]}
24. Qf2 {[%clk 0:02:46.7]} 24... Rc2 {[%clk 0:02:06.3]} 25. Rab1 {[%clk
0:02:37.3]} 25... Qa8 {[%clk 0:01:14.7]} 26. Rfc1 {[%clk 0:02:34.6]} 26... Rec8
{[%clk 0:01:13.4]} 27. Nc5 {[%clk 0:02:27.6]} 27... R8xc5 {[%clk 0:01:02.2]} 28.
bxc5 {[%clk 0:02:23.7]} 28... Bxc5 {[%clk 0:01:00.6]} 29. Rxc2 {[%clk
0:02:20.2]} 29... Bxf2+ {[%clk 0:00:56.3]} 30. Kxf2 {[%clk 0:02:19.3]} 30...
Qa7+ {[%clk 0:00:37.9]} 31. Ke1 {[%clk 0:01:59.7]} 31... Ne3 {[%clk 0:00:22.2]}
32. Ne4 {[%clk 0:01:14.6]} 32... Nxc2+ {[%clk 0:00:16.2]} 33. Kd2 {[%clk
0:01:11.8]} 33... dxe4 {[%clk 0:00:13.9]} 34. Kxc2 {[%clk 0:01:08.1]} 34... Qf2+
{[%clk 0:00:12.5]} 35. Kc3 {[%clk 0:01:02.9]} 35... Qxg2 {[%clk 0:00:11.6]} 36.
Rd1 {[%clk 0:01:02.3]} 36... Qf3+ {[%clk 0:00:10.3]} 37. Rd3 {[%clk 0:01:01.2]}
37... Qxd3+ {[%clk 0:00:08.8]} 38. Kb4 {[%clk 0:01:00]} 38... Qb3+ {[%clk
0:00:07.3]} 39. Kc5 {[%clk 0:00:58.9]} 39... Ne8 {[%clk 0:00:06.9]} 40. Bd4
{[%clk 0:00:50.6]} 40... Qc4+ {[%clk 0:00:06]} 41. Kb6 {[%clk 0:00:48.3]} 41...
Qxd4+ {[%clk 0:00:05.6]} 42. Kxb7 {[%clk 0:00:46.5]} 42... Qc5 {[%clk
0:00:04.2]} 43. a4 {[%clk 0:00:42.6]} 43... Qc7+ {[%clk 0:00:02.8]} 44. Ka6
{[%clk 0:00:41.3]} 44... Bc4# {[%clk 0:00:02.2]} 0-1

[Event "Live Chess"]
[Site "Chess.com"]
[Date "2024.06.01"]
[Round "-"]
[White "Mangoalo"]
[Black "TheSmoulderingMaster"]
[Result "0-1"]
[WhiteElo "1004"]
[BlackElo "1734"]
[TimeControl "300"]
[EndTime "9:09:21 PDT"]
[Termination "TheSmoulderingMaster won by resignation"]

1. e4 {[%clk 0:04:58.4]} 1... c5 {[%clk 0:04:58.8]} 2. Nf3 {[%clk 0:04:56.7]}
2... d6 {[%clk 0:04:58.1]} 3. d4 {[%clk 0:04:56.4]} 3... cxd4 {[%clk 0:04:57.5]}
4. Nxd4 {[%clk 0:04:55.6]} 4... Nf6 {[%clk 0:04:56.9]} 5. Nc3 {[%clk 0:04:55.1]}
5... g6 {[%clk 0:04:56.1]} 6. Bg5 {[%clk 0:04:53.4]} 6... Bg7 {[%clk 0:04:55]}
7. Bb5+ {[%clk 0:04:51.7]} 7... Nbd7 {[%clk 0:04:53.4]} 8. Bxd7+ {[%clk
0:04:51.2]} 8... Bxd7 {[%clk 0:04:52.5]} 9. Bxf6 {[%clk 0:04:50.1]} 9... Bxf6
{[%clk 0:04:51.2]} 10. Qd2 {[%clk 0:04:49]} 10... O-O {[%clk 0:04:50]} 11. O-O-O
{[%clk 0:04:48.2]} 11... a5 {[%clk 0:04:46]} 12. g4 {[%clk 0:04:45.2]} 12... a4
{[%clk 0:04:44.7]} 13. a3 {[%clk 0:04:43.2]} 13... Qb6 {[%clk 0:04:42.5]} 14. g5
{[%clk 0:04:37.8]} 14... Be5 {[%clk 0:04:40]} 15. Nf3 {[%clk 0:04:32.9]} 15...
Bg7 {[%clk 0:04:35]} 16. Nd5 {[%clk 0:04:31]} 16... Qd8 {[%clk 0:04:32.5]} 17.
Rhe1 {[%clk 0:04:22.2]} 17... Rc8 {[%clk 0:04:30]} 18. e5 {[%clk 0:04:19.9]}
18... Be6 {[%clk 0:04:28.1]} 19. exd6 {[%clk 0:04:15]} 19... exd6 {[%clk
0:04:26.3]} 20. Nf6+ {[%clk 0:04:12.3]} 20... Bxf6 {[%clk 0:04:24.6]} 21. gxf6
{[%clk 0:04:12.2]} 21... Qxf6 {[%clk 0:04:23.3]} 22. Nd4 {[%clk 0:04:02.8]}
22... Bb3 {[%clk 0:04:19]} 23. Nxb3 {[%clk 0:04:00.5]} 23... axb3 {[%clk
0:04:16.8]} 24. c3 {[%clk 0:03:59.7]} 24... Rfd8 {[%clk 0:04:11]} 25. Re3 {[%clk
0:03:53.8]} 25... b5 {[%clk 0:04:09.3]} 26. Rde1 {[%clk 0:03:52]} 26... d5
{[%clk 0:04:04.2]} 27. R1e2 {[%clk 0:03:38.5]} 27... d4 {[%clk 0:04:02.6]} 28.
Re8+ {[%clk 0:03:33.8]} 28... Rxe8 {[%clk 0:04:00.3]} 29. Rxe8+ {[%clk
0:03:33.7]} 29... Rxe8 {[%clk 0:03:58.8]} 30. Qxd4 {[%clk 0:03:33.6]} 0-1

[Event "Live Chess"]
[Site "Chess.com"]
[Date "2024.06.01"]
[Round "-"]
[White "TigerTank70"]
[Black "Shorr-Kan"]
[Result "1-0"]
[WhiteElo "2209"]
[BlackElo "1046"]
[TimeControl "300"]
[EndTime "9:09:23 PDT"]
[Termination "TigerTank70 won by checkmate"]

1. e4 {[%clk 0:04:57.5]} 1... e6 {[%clk 0:04:58.2]} 2. d4 {[%clk 0:04:56.2]}
2... d5 {[%clk 0:04:57.3]} 3. e5 {[%clk 0:04:54.9]} 3... c5 {[%clk 0:04:56]} 4.
c3 {[%clk 0:04:54.6]} 4... Nc6 {[%clk 0:04:54.6]} 5. Nf3 {[%clk 0:04:53.7]} 5...
Qb6 {[%clk 0:04:53.3]} 6. a3 {[%clk 0:04:51.2]} 6... cxd4 {[%clk 0:04:51.7]} 7.
cxd4 {[%clk 0:04:50.9]} 7... Nh6 {[%clk 0:04:45.4]} 8. Nc3 {[%clk 0:04:48.7]}
8... Nf5 {[%clk 0:04:42]} 9. Na4 {[%clk 0:04:47.5]} 9... Qc7 {[%clk 0:04:34]}
10. Be3 {[%clk 0:04:45.5]} 10... Nxe3 {[%clk 0:04:28.9]} 11. fxe3 {[%clk
0:04:43.7]} 11... Qa5+ {[%clk 0:04:26.6]} 12. Nc3 {[%clk 0:04:39.1]} 12... Bd7
{[%clk 0:04:22.4]} 13. Bd3 {[%clk 0:04:38.1]} 13... Be7 {[%clk 0:04:18]} 14. O-O
{[%clk 0:04:35.8]} 14... O-O {[%clk 0:04:16.8]} 15. b4 {[%clk 0:04:32.7]} 15...
Qc7 {[%clk 0:04:15.2]} 16. Rc1 {[%clk 0:04:31.6]} 16... f6 {[%clk 0:04:13.6]}
17. b5 {[%clk 0:04:25.4]} 17... Nd8 {[%clk 0:03:49.3]} 18. Nxd5 {[%clk
0:04:23.4]} 18... Qa5 {[%clk 0:03:45]} 19. Nxe7+ {[%clk 0:04:21.9]} 19... Kh8
{[%clk 0:03:43.5]} 20. exf6 {[%clk 0:04:04.7]} 20... Rxf6 {[%clk 0:03:40.9]} 21.
Ne5 {[%clk 0:04:00.7]} 21... Qxa3 {[%clk 0:03:33.5]} 22. Qh5 {[%clk 0:03:49.6]}
22... Nf7 {[%clk 0:03:15.2]} 23. Qxh7# {[%clk 0:03:40.4]} 1-0